fUSD/lending_fUSD_20260202
["ID","MTS","AMOUNT","RATE_DAILY","PERIOD"]
[404329644,1770063053424,-223.762297,0.00018,2]
[404329645,1770063053433,-418.358585,0.00018,2]
[404329646,1770063053443,-534.176251,0.00018,2]
[404329647,1770063053454,-418.358585,0.00018,2]
[404329648,1770063053463,-151.0,0.00018,2]
[404329649,1770063053473,-534.176251,0.00018,2]
[404329650,1770063053482,-151.0,0.00018,2]
[404329651,1770063053492,-418.358585,0.00018,2]
[404329652,1770063053502,-418.358585,0.00018,2]
[404329653,1770063053511,-534.176251,0.00018,2]
[404329654,1770063053521,-534.176251,0.00018,2]
[404329655,1770063053531,-151.0,0.00018,2]
[404329656,1770063053541,-151.0,0.00018,2]
[404329657,1770063053551,-418.358585,0.00018,2]
[404329658,1770063053562,-418.358585,0.00018,2]
[404329659,1770063053572,-200.0,0.00018,2]
[404329660,1770063053582,-151.0,0.00018,2]
[404329661,1770063053593,-151.0,0.00018,2]
[404329662,1770063053602,-151.0,0.00018,2]
[404329663,1770063053613,-151.0,0.00018,2]
[404329664,1770063053623,-151.0,0.00018,2]
[404329665,1770063053633,-151.0,0.00018,2]
[404329666,1770063053642,-180.29,0.00018018,2]
[404329667,1770063053652,-360.58,0.00018018,2]
[404329668,1770063053662,-1120.03,0.00018018,2]
[404329669,1770063053672,-559.85,0.00018018,2]
[404329670,1770063053681,-559.85,0.00018018,2]
[404329671,1770063053691,-1119.0,0.00018018,2]
[404329672,1770063053701,-326.65,0.00018018,2]
[404329673,1770063053711,-172.53,0.00018018,2]
[404329674,1770063053720,-172.53,0.00018018,2]
[404329675,1770063053731,-172.53,0.00018018,2]
[404329676,1770063053741,-242.27,0.00018018,2]
[404329677,1770063053750,-453.0,0.00018019,2]
[404329678,1770063053761,-300.0,0.00018027,2]
[404329679,1770063053770,-424.0,0.00018028,2]
[404329680,1770063053781,-500.0,0.00018028,2]
[404329681,1770063053791,-500.0,0.00018028,2]
[404329682,1770063053801,-480.77068013,0.00018028,2]
[404329683,1770063053812,-1358.0,0.00018028,2]
[404329684,1770063053822,-522.0,0.00018028,2]
[404329685,1770063053831,-651.0,0.00018028,2]
[404329686,1770063053841,-244.91010857,0.00018028,2]
[404329687,1770063053851,-612.0,0.00018028,2]
[404329688,1770063053862,-606.00668155,0.00018028,2]
[404329689,1770063053872,-500.0,0.00018028,2]
[404329690,1770063053882,-500.0,0.00018028,2]
[404329691,1770063053892,-500.0,0.00018028,2]
[404329692,1770063053902,-508.0,0.00018028,2]
[404329693,1770063053913,-1829.0,0.00018028,2]
[404329694,1770063053922,-948.0,0.00018028,2]
[404329695,1770063053932,-783.0,0.00018028,2]
[404329696,1770063053943,-910.0,0.00018028,2]
[404329697,1770063053953,-1000.0,0.00018082,2]
[404329698,1770063053963,-424.0,0.00018083,2]
[404329699,1770063053974,-216.56018115,0.00018083,2]
[404329700,1770063053985,-500.0,0.00018083,2]
[404329701,1770063053995,-1358.0,0.00018083,2]
[404329702,1770063054006,-522.0,0.00018083,2]
[404329703,1770063054018,-651.0,0.00018083,2]
[404329704,1770063054028,-612.0,0.00018083,2]
[404329705,1770063054039,-500.0,0.00018083,2]
[404329706,1770063054050,-500.0,0.00018083,2]
[404329707,1770063054060,-209.71512292,0.00018083,2]
[404329708,1770063054070,-508.0,0.00018083,2]
[404329709,1770063054079,-1829.0,0.00018083,2]
[404329710,1770063054090,-948.0,0.00018083,2]
[404329711,1770063054100,-783.0,0.00018083,2]
[404329712,1770063054110,-910.0,0.00018083,2]
[404329713,1770063054120,-1780.35114252,0.000181,2]
[404329714,1770063054130,-181.63743456,0.00018111,2]
[404329715,1770063054140,-201.39718201,0.00018116,2]
[404329716,1770063054150,-200.0,0.00018128,2]
[404329717,1770063054160,-424.0,0.00018137,2]
[404329718,1770063054170,-500.0,0.00018137,2]
[404329719,1770063054179,-1358.0,0.00018137,2]
[404329720,1770063054189,-522.0,0.00018137,2]
[404329721,1770063054198,-651.0,0.00018137,2]
[404329722,1770063054208,-612.0,0.00018137,2]
[404329723,1770063054218,-500.0,0.00018137,2]
[404329724,1770063054228,-500.0,0.00018137,2]
[404329725,1770063054238,-508.0,0.00018137,2]
[404329726,1770063054248,-1829.0,0.00018137,2]
[404329727,1770063054257,-948.0,0.00018137,2]
[404329728,1770063054267,-783.0,0.00018137,2]
[404329729,1770063054277,-910.0,0.00018137,2]
[404329730,1770063054286,-200.0,0.0001818,2]
[404329731,1770063054296,-200.0,0.0001818,2]
[404329732,1770063054306,-424.0,0.00018192,2]
[404329733,1770063054316,-500.0,0.00018192,2]
[404329734,1770063054326,-1358.0,0.00018192,2]
[404329735,1770063054336,-522.0,0.00018192,2]
[404329736,1770063054345,-651.0,0.00018192,2]
[404329737,1770063054355,-612.0,0.00018192,2]
[404329738,1770063054365,-500.0,0.00018192,2]
[404329739,1770063054374,-500.0,0.00018192,2]
[404329740,1770063054384,-508.0,0.00018192,2]
[404329741,1770063054393,-1829.0,0.00018192,2]
[404329742,1770063054403,-948.0,0.00018192,2]
[404329743,1770063054413,-783.0,0.00018192,2]
[404329744,1770063054423,-910.0,0.00018192,2]
[404329745,1770063054432,-3000.0,0.00018212,2]
[404329746,1770063054442,-424.0,0.00018247,2]
[404329747,1770063054453,-500.0,0.00018247,2]
[404329748,1770063054464,-1358.0,0.00018247,2]
[404329749,1770063054475,-522.0,0.00018247,2]
[404329750,1770063054486,-651.0,0.00018247,2]
[404329751,1770063054495,-612.0,0.00018247,2]
[404329752,1770063054506,-500.0,0.00018247,2]
[404329753,1770063054516,-500.0,0.00018247,2]
[404329754,1770063054526,-508.0,0.00018247,2]
[404329755,1770063054538,-1829.0,0.00018247,2]
[404329756,1770063054549,-948.0,0.00018247,2]
[404329757,1770063054561,-783.0,0.00018247,2]
[404329758,1770063054572,-910.0,0.00018247,2]
[404329759,1770063054582,-500.0,0.00018257,2]
[404329760,1770063054591,-297.12,0.00018287,2]
[404329761,1770063054601,-453.0,0.0001829,2]
[404329762,1770063054610,-1500.0,0.000183,2]
[404329763,1770063054621,-424.0,0.00018302,2]
[404329764,1770063054630,-500.0,0.00018302,2]
[404329765,1770063054640,-1358.0,0.00018302,2]
[404329766,1770063054650,-522.0,0.00018302,2]
[404329767,1770063054660,-651.0,0.00018302,2]
[404329768,1770063054670,-612.0,0.00018302,2]
[404329769,1770063054680,-500.0,0.00018302,2]
[404329770,1770063054690,-306.60033805,0.00018302,2]
[404329771,1770063054699,-1829.0,0.00018302,2]
[404329772,1770063054708,-508.0,0.00018302,2]
[404329773,1770063054717,-948.0,0.00018302,2]
[404329774,1770063054726,-783.0,0.00018302,2]
[404329775,1770063054737,-910.0,0.00018302,2]
[404329776,1770063054747,-1000.0,0.00018306,2]
[404329777,1770063054757,-453.0,0.00018315,2]
[404329778,1770063054766,-5888.0,0.00018317,2]
[404329779,1770063054776,-300.0,0.00018355,2]
[404329780,1770063054785,-300.0,0.00018355,2]
[404329781,1770063054794,-265.58840157,0.00018355,2]
[404329782,1770063054804,-666.0,0.00018355,2]
[404329783,1770063054814,-300.0,0.00018355,2]
[404329784,1770063054824,-88530.96,0.00018356,2]
[404329785,1770063054834,-1999.0,0.00018356,2]
[404329786,1770063054844,-424.0,0.00018357,2]
[404329787,1770063054854,-500.0,0.00018357,2]
[404329788,1770063054864,-1358.0,0.00018357,2]
[404329789,1770063054873,-522.0,0.00018357,2]
[404329790,1770063054884,-651.0,0.00018357,2]
[404329791,1770063054894,-612.0,0.00018357,2]
[404329792,1770063054904,-500.0,0.00018357,2]
[404329793,1770063054913,-1829.0,0.00018357,2]
[404329794,1770063054923,-508.0,0.00018357,2]
[404329795,1770063054933,-948.0,0.00018357,2]
[404329796,1770063054945,-783.0,0.00018357,2]
[404329797,1770063054954,-910.0,0.00018357,2]
[404329798,1770063054963,-200.0,0.00018362,2]
[404329799,1770063054973,-200.0,0.00018362,2]
[404329800,1770063054983,-346.92554585,0.00018411,2]
[404329801,1770063054993,-424.0,0.00018411,2]
[404329802,1770063055003,-500.0,0.00018411,2]
[404329803,1770063055013,-1358.0,0.00018411,2]
[404329804,1770063055023,-522.0,0.00018411,2]
[404329805,1770063055033,-651.0,0.00018411,2]
[404329806,1770063055042,-612.0,0.00018411,2]
[404329807,1770063055053,-500.0,0.00018411,2]
[404329808,1770063055062,-1829.0,0.00018411,2]
[404329809,1770063055072,-508.0,0.00018411,2]
[404329810,1770063055082,-948.0,0.00018411,2]
[404329811,1770063055092,-783.0,0.00018411,2]
[404329812,1770063055103,-910.0,0.00018411,2]
[404329813,1770063055112,-747.8093786,0.00018412,2]
[404329814,1770063055123,-599.60298507,0.00018412,2]
[404329815,1770063055134,-251.11897888,0.00018413,2]
[404329816,1770063055145,-1712.93078312,0.00018413,2]
[404329817,1770063055155,-209.40437684,0.00018413,2]
[404329818,1770063055167,-885.0,0.00018448,2]
[404329819,1770063055176,-2616.0,0.00018464,2]
[404329820,1770063055187,-424.0,0.00018466,2]
[404329821,1770063055197,-601.87473631,0.00018466,2]
[404329822,1770063055208,-1358.0,0.00018466,2]
[404329823,1770063055218,-522.0,0.00018466,2]
[404329824,1770063055229,-651.0,0.00018466,2]
[404329825,1770063055239,-612.0,0.00018466,2]
[404329826,1770063055250,-500.0,0.00018466,2]
[404329827,1770063055262,-1829.0,0.00018466,2]
[404329828,1770063055273,-508.0,0.00018466,2]
[404329829,1770063055284,-948.0,0.00018466,2]
[404329830,1770063055295,-783.0,0.00018466,2]
[404329831,1770063055306,-910.0,0.00018466,2]
[404329832,1770063055316,-151.0,0.00018483,2]
[404329833,1770063055327,-166.66,0.0001849,2]
[404329834,1770063055336,-151.0,0.000185,2]
[404329835,1770063055346,-2258.0,0.00018519,2]
[404329836,1770063055357,-424.0,0.00018521,2]
[404329837,1770063055367,-1358.0,0.00018521,2]
[404329838,1770063055377,-522.0,0.00018521,2]
[404329839,1770063055389,-651.0,0.00018521,2]
[404329840,1770063055399,-612.0,0.00018521,2]
[404329841,1770063055410,-500.0,0.00018521,2]
[404329842,1770063055422,-1829.0,0.00018521,2]
[404329843,1770063055433,-948.0,0.00018521,2]
[404329844,1770063055444,-508.0,0.00018521,2]
[404329845,1770063055454,-783.0,0.00018521,2]
[404329846,1770063055466,-910.0,0.00018521,2]
[404329847,1770063055476,-200.0,0.00018545,2]
[404329848,1770063055486,-200.0,0.00018545,2]
[404329849,1770063055497,-9035.0,0.00018573,2]
[404329850,1770063055509,-424.0,0.00018576,2]
[404329851,1770063055519,-1358.0,0.00018576,2]
[404329852,1770063055530,-522.0,0.00018576,2]
[404329853,1770063055540,-651.0,0.00018576,2]
[404329854,1770063055550,-612.0,0.00018576,2]
[404329855,1770063055561,-500.0,0.00018576,2]
[404329856,1770063055570,-1829.0,0.00018576,2]
[404329857,1770063055581,-508.0,0.00018576,2]
[404329858,1770063055592,-948.0,0.00018576,2]
[404329859,1770063055604,-783.0,0.00018576,2]
[404329860,1770063055614,-910.0,0.00018576,2]
[404329861,1770063055624,-159.60859955,0.00018592,2]
[404329862,1770063055634,-2844.0,0.000186,2]
[404329863,1770063055644,-5888.0,0.00018604,2]
[404329864,1770063055848,-150.0,0.0001863,2]
[404329865,1770063055861,-1000.0,0.0001863,2]
[404329866,1770063055872,-424.0,0.00018631,2]
[404329867,1770063055882,-1358.0,0.00018631,2]
[404329868,1770063055893,-522.0,0.00018631,2]
[404329869,1770063055903,-651.0,0.00018631,2]
[404329870,1770063055913,-612.0,0.00018631,2]
[404329871,1770063055924,-500.0,0.00018631,2]
[404329872,1770063055936,-1829.0,0.00018631,2]
[404329873,1770063055950,-508.0,0.00018631,2]
[404329874,1770063055959,-948.0,0.00018631,2]
[404329875,1770063055969,-783.0,0.00018631,2]
[404329876,1770063055980,-910.0,0.00018631,2]
[404329877,1770063055990,-453.0,0.00018642,2]
[404329878,1770063056000,-5888.0,0.00018657,2]
[404329879,1770063056011,-453.0,0.00018674,2]
[404329880,1770063056020,-424.0,0.00018685,2]
[404329881,1770063056031,-1358.0,0.00018685,2]
[404329882,1770063056041,-522.0,0.00018685,2]
[404329883,1770063056050,-651.0,0.00018685,2]
[404329884,1770063056060,-612.0,0.00018685,2]
[404329885,1770063056070,-367.68158157,0.00018685,2]
[404329886,1770063056081,-1829.0,0.00018685,2]
[404329887,1770063056090,-508.0,0.00018685,2]
[404329888,1770063056100,-948.0,0.00018685,2]
[404329889,1770063056109,-783.0,0.00018685,2]
[404329890,1770063056119,-910.0,0.00018685,2]
[404329891,1770063056128,-453.0,0.00018689,2]
[404329892,1770063056138,-5888.0,0.00018709,2]
[404329893,1770063056147,-200.0,0.00018731,2]
[404329894,1770063056157,-200.0,0.00018731,2]
[404329895,1770063056166,-424.0,0.0001874,2]
[404329896,1770063056175,-522.0,0.0001874,2]
[404329897,1770063056184,-1358.0,0.0001874,2]
[404329898,1770063056194,-651.0,0.0001874,2]
[404329899,1770063056203,-612.0,0.0001874,2]
[404329900,1770063056212,-1829.0,0.0001874,2]
[404329901,1770063056221,-508.0,0.0001874,2]
[404329902,1770063056230,-948.0,0.0001874,2]
[404329903,1770063056239,-783.0,0.0001874,2]
[404329904,1770063056249,-910.0,0.0001874,2]
[404329905,1770063056259,-1172.44734327,0.0001876,2]
[404329906,1770063056269,-500.0,0.00018795,2]
[404329907,1770063056280,-424.0,0.00018795,2]
[404329908,1770063056290,-522.0,0.00018795,2]
[404329909,1770063056299,-1358.0,0.00018795,2]
[404329910,1770063056309,-651.0,0.00018795,2]
[404329911,1770063056319,-612.0,0.00018795,2]
[404329912,1770063056331,-1829.0,0.00018795,2]
[404329913,1770063056342,-508.0,0.00018795,2]
[404329914,1770063056353,-948.0,0.00018795,2]
[404329915,1770063056363,-783.0,0.00018795,2]
[404329916,1770063056372,-910.0,0.00018795,2]
[404329917,1770063056382,-500.0,0.00018805,2]
[404329918,1770063056391,-272.43,0.00018808,2]
[404329919,1770063056401,-172.53,0.0001884,2]
[404329920,1770063056411,-172.53,0.0001884,2]
[404329921,1770063056420,-172.53,0.0001884,2]
[404329922,1770063056430,-172.53,0.0001884,2]
[404329923,1770063056440,-346.71,0.0001884,2]
[404329924,1770063056452,-424.0,0.0001885,2]
[404329925,1770063056461,-522.0,0.0001885,2]
[404329926,1770063056471,-1358.0,0.0001885,2]
[404329927,1770063056480,-651.0,0.0001885,2]
[404329928,1770063056489,-612.0,0.0001885,2]
[404329929,1770063056499,-1829.0,0.0001885,2]
[404329930,1770063056509,-508.0,0.0001885,2]
[404329931,1770063056521,-948.0,0.0001885,2]
[404329932,1770063056533,-783.0,0.0001885,2]
[404329933,1770063056543,-910.0,0.0001885,2]
[404329934,1770063056553,-300.0,0.00018887,2]
[404329935,1770063056563,-300.0,0.00018887,2]
[404329936,1770063056573,-724.96374107,0.00018887,2]
[404329937,1770063056588,-300.0,0.00018887,2]
[404329938,1770063056597,-16792.79177488,0.00018888,2]
[404329939,1770063056607,-300.0,0.00018899,2]
[404329940,1770063056616,-300.0,0.00018899,2]
[404329941,1770063056626,-5888.0,0.00018899,2]
[404329942,1770063056637,-219.544,0.000189,2]
[404329943,1770063056647,-93778.56307633,0.000189,2]
[404329944,1770063056656,-1000.0,0.00018904,2]
[404329945,1770063056666,-424.0,0.00018904,2]
[404329946,1770063056676,-522.0,0.00018904,2]
[404329947,1770063056686,-1358.0,0.00018904,2]
[404329948,1770063056695,-651.0,0.00018904,2]
[404329949,1770063056704,-612.0,0.00018904,2]
[404329950,1770063056714,-1829.0,0.00018904,2]
[404329951,1770063056724,-508.0,0.00018904,2]
[404329952,1770063056733,-948.0,0.00018904,2]
[404329953,1770063056743,-783.0,0.00018904,2]
[404329954,1770063056754,-910.0,0.00018904,2]
[404329955,1770063056764,-180.29,0.00018959,2]
[404329956,1770063056774,-180.29,0.00018959,2]
[404329957,1770063056784,-360.58,0.00018959,2]
[404329958,1770063056794,-180.29,0.00018959,2]
[404329959,1770063056803,-5888.0,0.00018959,2]
[404329960,1770063056814,-429.71455312,0.00018959,2]
[404329961,1770063056824,-530.72276123,0.00018959,2]
[404329962,1770063056837,-1380.22922749,0.00018959,2]
[404329963,1770063056848,-661.10585253,0.00018959,2]
[404329964,1770063056858,-620.19208607,0.00018959,2]
[404329965,1770063056867,-1849.74266754,0.00018959,2]
[404329966,1770063056877,-952.71741318,0.00018959,2]
[404329967,1770063056887,-377.43207959,0.00018959,2]
[404329968,1770063056897,-786.9627963,0.00018959,2]
[404329969,1770063056907,-914.05876183,0.00018959,2]
[404329970,1770063056918,-260.4103811,0.00018961,2]
[404329971,1770063056929,-1776.30922209,0.00018961,2]
[404329972,1770063056940,-217.15233878,0.00018961,2]
[404329973,1770063056951,-5888.0,0.00018978,2]
[404329974,1770063056961,-150.0,0.00018999,2]
[404329975,1770063056970,-300.0,0.00018999,2]
[404329976,1770063056982,-5171.63525443,0.00019,2]
[404329977,1770063056991,-151.0,0.00019,2]
[404329978,1770063057001,-200.0,0.00019,5]
[404329979,1770063057012,-601.9720403,0.00019,2]
[404329980,1770063057023,-395.14024062,0.00019,2]
[404329981,1770063057032,-20976.29068396,0.00019,2]
[404329982,1770063057043,-350.0,0.00019,2]
[404329983,1770063057052,-502.0,0.00019,2]
[404329984,1770063057063,-151.0,0.00019016,2]
[404329985,1770063057073,-5888.0,0.00019017,2]
[404329986,1770063057085,-297.12,0.00019019,2]
[404329987,1770063057096,-166.66,0.00019029,2]
[404329988,1770063057112,-5888.0,0.00019085,2]
[404329989,1770063057121,-5888.0,0.00019135,2]
[404329990,1770063057132,-300.0,0.00019177,2]
[404329991,1770063057143,-150.0,0.00019178,2]
[404329992,1770063057153,-3003.07448898,0.00019178,2]
[404329993,1770063057164,-500.0,0.00019178,2]
[404329994,1770063057178,-500.0,0.00019178,2]
[404329995,1770063057189,-500.0,0.00019178,2]
[404329996,1770063057199,-500.0,0.00019178,2]
[404329997,1770063057209,-500.0,0.00019178,2]
[404329998,1770063057220,-500.0,0.00019178,2]
[404329999,1770063057231,-500.0,0.00019178,2]
[404330000,1770063057241,-500.0,0.00019178,2]
[404330001,1770063057252,-605.60929144,0.00019178,2]
[404330002,1770063057263,-500.0,0.00019178,2]
[404330003,1770063057273,-500.0,0.00019178,2]
[404330004,1770063057284,-500.0,0.00019178,2]
[404330005,1770063057295,-500.0,0.00019178,2]
[404330006,1770063057311,-500.0,0.00019178,2]
[404330007,1770063057329,-20146.33,0.00019178,2]
[404330008,1770063057347,-151.0,0.00019178,2]
[404330009,1770063057357,-151.0,0.00019178,2]
[404330010,1770063057367,-151.0,0.00019178,2]
[404330011,1770063057377,-151.0,0.00019178,2]
[404330012,1770063057387,-151.0,0.00019178,2]
[404330013,1770063057397,-3035.858789,0.00019178,2]
[404330014,1770063057408,-3035.858789,0.00019178,2]
[404330015,1770063057418,-3035.858789,0.00019178,2]
[404330016,1770063057428,-3035.858789,0.00019178,2]
[404330017,1770063057438,-3035.858789,0.00019178,2]
[404330018,1770063057448,-3035.858789,0.00019178,2]
[404330019,1770063057457,-3035.858789,0.00019178,2]
[404330020,1770063057467,-3035.858789,0.00019178,2]
[404330021,1770063057477,-1639.331664,0.00019178,2]
[404330022,1770063057488,-1639.331664,0.00019178,2]
[404330023,1770063057498,-1639.331664,0.00019178,2]
[404330024,1770063057507,-1639.331664,0.00019178,2]
[404330025,1770063057518,-1639.331664,0.00019178,2]
[404330026,1770063057528,-1639.331664,0.00019178,2]
[404330027,1770063057538,-1639.331664,0.00019178,2]
[404330028,1770063057547,-1639.331664,0.00019178,2]
[404330029,1770063057559,-151.0,0.00019178,2]
[404330030,1770063057574,-151.0,0.00019178,2]
[404330031,1770063057586,-151.0,0.00019178,2]
[404330032,1770063057597,-166.269928,0.00019178,2]
[404330033,1770063057607,-150.0,0.00019178,2]
[404330034,1770063057617,-250.0,0.00019178,2]
[404330035,1770063057627,-1000.0,0.00019178,2]
[404330036,1770063057637,-150.0,0.00019178,2]
[404330037,1770063057647,-150.0,0.00019233,2]
[404330038,1770063057658,-5888.0,0.00019241,2]
[404330039,1770063057668,-453.0,0.00019244,2]
[404330040,1770063057679,-181.63,0.00019251,2]
[404330041,1770063057691,-150.0,0.00019288,2]
[404330042,1770063057702,-5888.0,0.00019326,2]
[404330043,1770063057712,-839.0,0.0001933,2]
[404330044,1770063057723,-5888.0,0.00019338,2]
[404330045,1770063057735,-206.94602799,0.00019342,2]
[404330046,1770063057745,-500.0,0.00019353,2]
[404330047,1770063057756,-159.60859955,0.00019367,2]
[404330048,1770063057768,-1000.0,0.00019452,2]
[404330049,1770063057778,-839.0,0.0001948,2]
[404330050,1770063057790,-270.0455652,0.00019509,2]
[404330051,1770063057801,-1842.03266331,0.00019509,2]
[404330052,1770063057811,-225.18697532,0.00019509,2]
[404330053,1770063057822,-839.0,0.0001959,2]
[404330054,1770063057834,-500.0,0.00019639,2]
[404330055,1770063057845,-165.79,0.00019658,2]
[404330056,1770063057855,-256.669782,0.00019726,2]
[404330057,1770063057866,-256.669782,0.00019726,2]
[404330058,1770063057877,-256.669782,0.00019726,2]
[404330059,1770063057889,-256.669782,0.00019726,2]
[404330060,1770063057899,-256.669782,0.00019726,2]
[404330061,1770063057908,-256.669782,0.00019726,2]
[404330062,1770063057918,-256.669782,0.00019726,2]
[404330063,1770063057928,-256.669782,0.00019726,2]
[404330064,1770063057940,-250.0,0.00019726,2]
[404330065,1770063057957,-350.0,0.00019726,2]
[404330066,1770063057968,-1999.0,0.00019726,2]
[404330067,1770063057980,-250.0,0.00019726,2]
[404330068,1770063057991,-297.12,0.0001975,2]
[404330069,1770063058002,-359.76179104,0.0001978,2]
[404330070,1770063058014,-155.0,0.00019799,2]
[404330071,1770063058024,-500.0,0.00019808,2]
[404330072,1770063058034,-502.0,0.00019847,2]
[404330073,1770063058045,-500.0,0.000199,5]
[404330074,1770063058055,-606.58411672,0.000199,2]
[404330075,1770063058065,-500.0,0.000199,5]
[404330076,1770063058076,-500.0,0.000199,2]
[404330077,1770063058087,-500.0,0.000199,2]
[404330078,1770063058098,-500.0,0.000199,5]
[404330079,1770063058108,-500.0,0.00019901,2]
[404330080,1770063058119,-300.0,0.00019999,2]
[404330081,1770063058128,-2464.68,0.0002,2]
[404330082,1770063058139,-3950.0,0.0002,2]
[404330083,1770063058150,-1534.07115096,0.0002,2]
[404330084,1770063058160,-176.59729255,0.0002,2]
[404330085,1770063058170,-25608.48792622,0.0002,2]
[404330086,1770063058181,-1295.1801523,0.0002,2]
[404330087,1770063058191,-1045.48156087,0.0002,2]
[404330088,1770063058202,-2865.04978677,0.0002,2]
[404330089,1770063058211,-12930.4366456,0.0002,2]
[404330090,1770063058222,-152.0,0.0002,2]
[404330091,1770063058235,-164.64024055,0.0002,2]
[404330092,1770063058245,-10000.0,0.0002,2]
[404330093,1770063058256,-200.0,0.0002,5]
[404330094,1770063058266,-187.88,0.0002,2]
[404330095,1770063058278,-200.0,0.0002,2]
[404330096,1770063058288,-500.0,0.00020001,2]
[404330097,1770063058298,-500.0,0.00020002,2]
[404330098,1770063058308,-499.9999,0.00020003,2]
[404330099,1770063058411,-8720.0,0.0002001,2]
[404330100,1770063058422,-280.03725112,0.00020057,2]
[404330101,1770063058432,-1910.18787185,0.00020057,2]
[404330102,1770063058443,-233.51889341,0.00020057,2]
[404330103,1770063058452,-159.60859955,0.00020142,2]
[404330104,1770063058462,-151.0,0.000202,2]
[404330105,1770063058471,-272.43,0.00020224,2]
[404330106,1770063058481,-300.0,0.00020271,2]
[404330107,1770063058491,-1334.0,0.00020272,2]
[404330108,1770063058501,-1410.0,0.00020272,2]
[404330109,1770063058510,-150.0,0.00020272,2]
[404330110,1770063058522,-1271.0,0.00020272,2]
[404330111,1770063058531,-1205.0,0.00020272,2]
[404330112,1770063058541,-917.0,0.00020272,2]
[404330113,1770063058551,-568.0,0.00020272,2]
[404330114,1770063058561,-3253.0,0.00020272,2]
[404330115,1770063058571,-1316.0,0.00020272,2]
[404330116,1770063058582,-350.0,0.00020274,2]
[404330117,1770063058591,-450.0,0.00020274,2]
[404330118,1770063058602,-264.12932827,0.00020274,2]
[404330119,1770063058612,-500.0,0.000203,2]
[404330120,1770063058622,-1367.0,0.0002036,2]
[404330121,1770063058631,-200.0,0.00020369,2]
[404330122,1770063058641,-71846.2352822,0.00020428,2]
[404330123,1770063058651,-12649.0,0.0002043,2]
[404330124,1770063058661,-839.0,0.00020465,2]
[404330125,1770063058670,-1137.87689662,0.00020482,2]
[404330126,1770063058680,-1941.80016227,0.00020482,2]
[404330127,1770063058691,-200.0,0.00020489,2]
[404330128,1770063058701,-500.0,0.000205,2]
[404330129,1770063058711,-21544.3,0.00020548,2]
[404330130,1770063058723,-154.61,0.00020548,2]
[404330131,1770063058734,-500.0,0.00020548,2]
[404330132,1770063058743,-500.0,0.00020603,2]
[404330133,1770063058754,-290.39862941,0.00020605,2]
[404330134,1770063058765,-1980.86482311,0.00020605,2]
[404330135,1770063058775,-242.15909246,0.00020605,2]
[404330136,1770063058784,-500.0,0.00020658,2]
[404330137,1770063058794,-502.0,0.00020694,3]
[404330138,1770063058805,-22676.090458,0.000207,2]
[404330139,1770063058815,-500.0,0.00020712,2]
[404330140,1770063058826,-500.0,0.00020767,2]
[404330141,1770063058835,-839.0,0.00020785,2]
[404330142,1770063058845,-207.87,0.000208,2]
[404330143,1770063058855,-240.106668,0.000208,10]